bitfinex/quotes_ETHUSD_20230117
["timestamp","ask_amount","ask_price","bid_price","bid_amount"]
[1673958277313,1.95810719,1577.0,1576.6,6.34265]
[1673958277472,1.89210719,1577.0,1576.6,9.52527407]
[1673958277678,1.89210719,1577.0,1576.6,11.11209848]
[1673958278762,1.89210719,1577.0,1576.6,1.65282441]
[1673958278936,0.4759,1576.9,1576.5,6.40897]
[1673958279145,6.34159,1576.9,1576.5,0.066]
[1673958279358,6.40759,1576.9,1576.5,0.87582354]
[1673958279619,0.066,1576.9,1576.5,16.67830761]
[1673958279777,2.36790719,1577.0,1576.5,16.74430761]
[1673958279985,2.36790719,1577.0,1576.6,0.0089521]
[1673958280198,2.36790719,1577.0,1576.6,6.3515221]
[1673958280199,0.4758,1577.0,1576.6,6.3515221]
[1673958280513,0.4758,1577.0,1576.6,8.72710507]
[1673958280933,0.4758,1577.0,1576.6,15.06986507]
[1673958281404,1.89149293,1577.0,1576.6,15.06986507]
[1673958281593,17.690507,1577.0,1576.6,0.0749521]
[1673958281782,21.45692293,1577.0,1576.6,0.0089521]
[1673958282139,8.77444293,1577.0,1576.6,0.0089521]
[1673958282352,0.066,1577.0,1576.6,23.15384617]
[1673958282508,1.89149293,1577.1,1576.7,2.31538462]
[1673958282719,1.89149293,1577.1,1576.7,8.65749462]
[1673958282977,1.89149293,1577.1,1576.7,15.06585462]
[1673958283569,1.89149293,1577.1,1576.7,24.52483869]
[1673958283764,2.36729293,1577.2,1576.8,3.11662407]
[1673958283980,2.36729293,1577.2,1576.9,6.65320241]
[1673958284188,2.36729293,1577.2,1576.9,6.71920241]
[1673958284189,1.89149293,1577.2,1576.9,6.71920241]
[1673958284443,1.89149293,1577.2,1576.9,0.37766241]
[1673958284780,1.89149293,1577.2,1576.9,0.31166241]
[1673958285237,14.63774293,1577.3,1576.9,0.31166241]
[1673958285447,8.70767293,1577.2,1576.8,6.40768]
[1673958285674,8.77367293,1577.2,1576.8,6.40768]
[1673958285913,1.95749293,1577.2,1576.8,12.74963]
[1673958286129,1.89149293,1577.2,1576.8,12.74963]
[1673958286345,1.89149293,1577.2,1576.9,1.274963]
[1673958286507,8.23185293,1577.2,1576.8,0.066]
[1673958286715,8.23185293,1577.2,1576.7,20.34283462]
[1673958286716,14.63821293,1577.2,1576.7,20.34283462]
[1673958286962,20.97857293,1577.2,1576.7,11.6851]
[1673958287153,1.89149293,1577.1,1576.7,11.6851]
[1673958287363,6.34115,1577.0,1576.7,11.6851]
[1673958287608,0.066,1577.0,1576.7,24.36979]
[1673958287813,1.89149293,1577.1,1576.7,24.36979]
[1673958288032,8.23229293,1577.1,1576.7,21.09954921]
[1673958288182,8.29829293,1577.1,1576.7,21.09954921]
[1673958288392,1.95749293,1577.1,1576.7,27.44190921]
[1673958288661,1.89149293,1577.1,1576.7,27.44190921]
[1673958288854,14.57301293,1577.1,1576.7,14.75721921]
[1673958289040,20.97778293,1577.1,1576.7,14.75721921]
[1673958289249,20.97778293,1577.1,1576.7,0.066]
[1673958289250,23.31225409,1577.1,1576.7,0.066]
[1673958289462,1.286,1576.9,1576.6,0.0749521]
[1673958289678,13.96959,1576.9,1576.6,0.0089521]
[1673958290011,12.74959,1576.9,1576.6,0.0089521]
[1673958290970,14.94280386,1576.9,1576.6,0.0089521]
[1673958291156,21.28473386,1576.9,1576.6,0.0089521]
[1673958291370,3.11662407,1576.8,1576.6,0.0089521]
[1673958291559,7.23286272,1576.8,1576.6,0.0089521]
[1673958291774,19.02708,1576.7,1576.6,0.0089521]
[1673958291985,20.40694744,1576.7,1576.6,0.0089521]
[1673958292195,21.68994744,1576.7,1576.6,0.0089521]
[1673958292407,24.05528609,1576.7,1576.6,0.0089521]
[1673958293241,27.17191016,1576.7,1576.6,0.0089521]
[1673958293713,24.80657151,1576.7,1576.2,1.67922861]
[1673958293917,1.286,1576.4,1576.2,1.67922861]
[1673958294228,6.34397,1576.3,1576.2,1.67922861]
[1673958294448,6.40997,1576.3,1576.2,1.67922861]
[1673958294801,14.03694,1576.3,1576.2,1.67922861]
[1673958295645,7.69297,1576.3,1576.2,1.67922861]
[1673958295852,9.096644,1576.3,1576.2,1.67922861]
[1673958296532,15.440614,1576.3,1576.2,1.67922861]
[1673958297855,18.55723807,1576.3,1576.2,1.67922861]
[1673958298692,20.45333417,1576.3,1576.2,1.67922861]
[1673958299015,12.21326807,1576.3,1576.2,1.67922861]
[1673958299167,3.228674,1576.3,1576.2,1.67922861]
[1673958299539,15.850614,1576.3,1576.2,1.67922861]
[1673958299854,15.916614,1576.3,1576.2,1.67922861]
[1673958300977,15.440614,1576.3,1576.2,1.67922861]
[1673958301371,17.3367101,1576.3,1576.2,1.68532491]
[1673958301852,20.45333417,1576.3,1576.2,1.68532491]
[1673958302064,23.68333417,1576.3,1576.2,0.0060963]
[1673958302236,24.63245891,1576.3,1576.2,0.0060963]
[1673958303281,23.49923807,1576.3,1576.2,0.0060963]
[1673958303514,1.0,1576.2,1576.0,0.0086272]
[1673958303841,19.56541437,1576.1,1576.0,0.0086272]
[1673958304052,19.34826407,1576.1,1576.0,0.0086272]
[1673958304902,21.24541437,1576.1,1576.0,0.0086272]
[1673958305417,19.57826407,1576.1,1576.0,0.0086272]
[1673958305625,21.47541437,1576.1,1576.0,0.0086272]
[1673958305784,24.85582167,1576.1,1576.0,0.0086272]
[1673958305995,22.95867137,1576.1,1576.0,0.0086272]
[1673958306235,24.85582167,1576.1,1576.0,0.0086272]
[1673958308127,22.95867137,1576.1,1576.0,0.0086272]
[1673958308771,24.85582167,1576.1,1576.0,0.0086272]
[1673958308994,22.95867137,1576.1,1576.0,0.0086272]
[1673958309837,24.24467137,1576.1,1576.0,0.0086272]
[1673958310218,22.96767137,1576.1,1576.0,0.0086272]
[1673958310645,1.0,1576.0,1575.8,0.01432809]
[1673958310889,6.01062407,1575.9,1575.8,0.01432809]
[1673958311099,25.11336407,1575.9,1575.8,0.01432809]
[1673958312744,28.75970325,1575.9,1575.8,0.01432809]
[1673958313043,28.58956407,1575.9,1575.8,0.01432809]
[1673958313298,28.58956407,1575.9,1575.8,8.09e-06]
[1673958313490,35.30356407,1575.9,1575.4,0.01490804]
[1673958313724,1.286,1575.6,1575.4,0.01490804]
[1673958314014,1.0,1575.7,1575.4,0.01490804]
[1673958314015,23.67419407,1575.5,1575.4,0.01490804]
[1673958314249,30.08738407,1575.5,1575.4,0.01490804]
[1673958314563,31.53338407,1575.5,1575.4,0.01490804]
[1673958314778,36.29568407,1575.5,1575.4,0.01490804]
[1673958314993,44.41335807,1575.5,1575.2,0.01584627]
[1673958315142,5.67362407,1575.3,1575.2,0.01584627]
[1673958315356,23.73559407,1575.3,1575.2,0.01584627]
[1673958315699,22.22659407,1575.3,1575.2,0.01584627]
[1673958316042,21.28142381,1575.3,1575.2,0.01584627]
[1673958316350,31.53706619,1575.3,1575.0,0.02797325]
[1673958316554,19.0464,1575.1,1575.0,0.02797325]
[1673958316764,22.45902407,1575.1,1575.0,0.02797325]
[1673958317136,30.09382407,1575.1,1575.0,0.02797325]
[1673958317351,13.6984,1575.0,1574.9,0.01925784]
[1673958317616,19.92946299,1575.0,1574.9,0.01925784]
[1673958317931,19.92946299,1575.0,1574.8,0.01925784]
[1673958318088,16.04582407,1574.9,1574.8,0.01925784]
[1673958318293,17.40450243,1574.9,1574.8,0.01925784]
[1673958318509,16.11182407,1574.9,1574.8,0.01925784]
[1673958318742,18.44629523,1574.9,1574.8,0.01925784]
[1673958319168,14.661123,1574.9,1574.8,0.01925784]
[1673958322069,26.131623,1574.9,1574.7,0.01809181]
[1673958322280,4.62362407,1574.8,1574.7,0.01809181]
[1673958322493,18.32364407,1574.8,1574.7,0.01809181]
[1673958322809,41.10259679,1574.8,1574.7,0.01809181]
[1673958323269,24.82559679,1574.8,1574.7,0.01809181]
[1673958323488,24.17925761,1574.8,1574.7,0.01809181]
[1673958324147,23.70275761,1574.8,1574.7,0.01809181]
[1673958324516,31.70275761,1574.8,1574.7,0.01809181]
[1673958324725,31.70275761,1574.8,1574.2,0.066]
[1673958324726,1.0,1574.7,1574.2,0.066]
[1673958324970,30.12864407,1574.6,1574.1,0.02054036]
[1673958325179,3.11662407,1574.5,1574.1,0.02054036]
[1673958325393,22.17172407,1574.4,1574.1,0.02054036]
[1673958325737,6.4177,1574.4,1574.1,0.02054036]
[1673958326264,0.279,1574.3,1574.1,0.02054036]
[1673958326460,12.70285,1574.5,1574.4,2.17645814]
[1673958326461,0.066,1574.5,1574.4,2.17645814]
[1673958326771,6.35085,1574.6,1574.4,2.17645814]
[1673958326988,0.066,1574.6,1574.4,2.17645814]
[1673958327148,6.41634,1574.8,1574.4,2.17645814]
[1673958327605,6.41634,1574.8,1574.4,3.17645814]
[1673958327831,6.41634,1574.8,1574.5,0.31764581]
[1673958329175,15.88333407,1574.8,1574.5,0.31764581]
[1673958329392,12.76671,1574.8,1574.4,2.17645814]
[1673958330120,15.88333407,1574.8,1574.4,2.17645814]
[1673958330311,17.16833407,1574.8,1574.4,2.17645814]
[1673958330676,3.11662407,1574.7,1574.4,2.17645814]
[1673958330859,6.35081,1574.6,1574.4,3.53802395]
[1673958331188,12.76762,1574.6,1574.4,3.53802395]
[1673958331507,12.76762,1574.6,1574.4,2.17645814]
[1673958332036,3.11662407,1574.5,1574.4,2.17645814]
[1673958332186,12.70244,1574.5,1574.4,2.17645814]
[1673958332605,12.76844,1574.5,1574.4,2.17645814]
[1673958333040,6.41722,1574.5,1574.4,2.17645814]
[1673958333881,12.76844,1574.5,1574.4,2.17645814]
[1673958334096,17.79698907,1574.5,1574.4,2.17645814]
[1673958335880,18.27358907,1574.5,1574.4,2.17645814]
[1673958336737,1.0,1574.4,1574.3,0.837]
[1673958336963,18.58246407,1574.4,1574.3,0.837]
[1673958337192,20.14125889,1574.4,1574.3,0.837]
[1673958337410,20.37125889,1574.4,1574.3,0.837]
[1673958337676,21.65725889,1574.4,1574.3,0.837]
[1673958338128,20.42725889,1574.4,1574.3,0.837]
[1673958338346,16.36246407,1574.4,1574.3,0.837]
[1673958339146,15.95908979,1574.4,1574.3,0.837]
[1673958339359,22.89975495,1574.4,1574.3,0.837]
[1673958339593,16.18575495,1574.4,1574.3,0.837]
[1673958340140,12.76924,1574.4,1574.3,0.837]
[1673958340352,0.066,1574.4,1574.3,0.9207]
[1673958340503,6.41681,1574.6,1574.3,0.9207]
[1673958340828,6.41681,1574.6,1574.3,0.837]
[1673958340829,6.35126,1574.5,1574.3,0.837]
[1673958341044,12.76852,1574.5,1574.3,0.837]
[1673958341688,6.41726,1574.5,1574.3,0.837]
[1673958342092,0.066,1574.5,1574.3,0.837]
[1673958342294,6.35052,1574.7,1574.3,0.837]
[1673958342512,9.53314407,1574.7,1574.3,0.837]
[1673958342848,3.11662407,1574.6,1574.3,0.837]
[1673958343059,15.81906407,1574.5,1574.3,0.837]
[1673958343401,16.81986407,1574.4,1574.3,0.837]
[1673958343562,16.88586407,1574.4,1574.3,0.837]
[1673958343756,15.88586407,1574.4,1574.3,0.837]
[1673958343973,18.10957248,1574.4,1574.3,0.837]
[1673958344451,18.10957248,1574.4,1574.1,0.02054036]
[1673958344593,3.11662407,1574.3,1574.1,0.02054036]
[1673958344804,9.46905407,1574.2,1574.1,0.02054036]
[1673958345018,15.88748407,1574.2,1574.1,0.02054036]
[1673958345272,17.86934071,1574.2,1574.1,0.02054036]
[1673958346620,18.09934071,1574.2,1574.1,0.02054036]
[1673958347967,17.86934071,1574.2,1574.1,0.02054036]
[1673958348740,17.86934071,1574.2,1574.1,1.03654036]
[1673958348741,0.066,1574.2,1574.1,1.03654036]
[1673958349072,6.41831,1574.3,1574.1,1.03654036]
[1673958349223,12.77062,1574.3,1574.1,0.02054036]
[1673958350010,15.88724407,1574.3,1574.1,0.02054036]
[1673958350481,18.11114848,1574.3,1574.1,0.02054036]
[1673958350835,3.11662407,1574.2,1574.1,0.02054036]
[1673958351093,15.82148407,1574.2,1574.1,0.02054036]
[1673958351313,15.88748407,1574.2,1574.1,0.02054036]
[1673958351520,0.066,1574.2,1574.1,1.03654036]
[1673958351750,6.41831,1574.3,1574.1,1.03654036]
[1673958352051,1.7545,1574.7,1574.1,1.03654036]
[1673958352052,0.06,1574.8,1574.3,2.45561807]
[1673958352221,6.3501,1574.8,1574.3,5.45561807]
[1673958352434,6.4161,1574.8,1574.3,5.52161807]
[1673958352942,15.88282407,1574.8,1574.3,5.52161807]
[1673958353157,6.4161,1574.8,1574.4,0.55216181]
[1673958354624,3.11662407,1574.7,1574.4,0.55216181]
[1673958354834,6.35089,1574.6,1574.3,5.52161807]
[1673958355101,6.41689,1574.6,1574.3,5.52161807]
[1673958355692,6.41689,1574.6,1574.3,6.52161807]
[1673958356029,5.47131701,1574.6,1574.3,5.52161807]
[1673958356206,5.47131701,1574.6,1574.3,7.07283988]
[1673958357785,11.82220701,1574.6,1574.3,4.07283988]
[1673958357992,3.11662407,1574.5,1574.3,2.45561807]
[1673958358181,22.17148407,1574.4,1574.3,2.45561807]
[1673958358398,22.23748407,1574.4,1574.3,2.45561807]
[1673958358589,22.23748407,1574.4,1574.3,2.45266473]
[1673958359475,22.71408407,1574.4,1574.3,2.45266473]
[1673958359840,25.14404448,1574.4,1574.3,2.45266473]
[1673958361172,1.0,1574.3,1574.1,0.08654036]
[1673958361316,22.40391407,1574.2,1574.1,0.02054036]
[1673958361528,22.46991407,1574.2,1574.1,0.02054036]
[1673958361793,28.29206548,1574.2,1574.1,0.02054036]
[1673958361959,28.76876548,1574.2,1574.1,0.02054036]
[1673958362637,12.83390548,1574.2,1574.1,0.02054036]
[1673958362854,6.82864,1574.3,1574.2,1.61541492]
[1673958363000,0.066,1574.3,1574.2,1.61541492]
[1673958363346,13.24588,1574.4,1574.2,1.61541492]
[1673958363517,16.36250407,1574.4,1574.2,1.61541492]
[1673958363944,0.066,1574.4,1574.2,1.77901045]
[1673958364169,12.70227,1574.6,1574.2,1.77901045]
[1673958364170,12.76827,1574.6,1574.2,1.77901045]
[1673958364410,3.11662407,1574.5,1574.2,1.77901045]
[1673958365058,0.066,1574.6,1574.2,1.77901045]
[1673958365210,6.89331,1574.7,1574.2,2.77901045]
[1673958365417,0.066,1574.7,1574.3,1.56390105]
[1673958365639,3.11662407,1574.7,1574.3,0.27790105]
[1673958365978,3.11662407,1574.6,1574.2,1.77901045]
[1673958366186,6.35122,1574.5,1574.2,1.77901045]
[1673958366554,6.41722,1574.5,1574.2,1.77901045]
[1673958366832,9.53384407,1574.5,1574.2,1.61541492]
[1673958366989,15.88506407,1574.5,1574.2,1.61541492]
[1673958367693,0.066,1574.5,1574.2,1.61541492]
[1673958367886,6.41683,1574.6,1574.2,1.61541492]
[1673958368057,9.53345407,1574.6,1574.2,1.61541492]
[1673958368274,15.88428407,1574.6,1574.2,1.61541492]
[1673958368469,18.37788134,1574.6,1574.2,1.61541492]
[1673958369218,3.11662407,1574.5,1574.2,1.61541492]
[1673958369437,6.35127,1574.5,1574.2,1.61541492]
[1673958369639,6.41727,1574.5,1574.2,1.61541492]
[1673958372252,12.76854,1574.5,1574.2,1.61541492]
[1673958372600,12.76854,1574.5,1574.2,2.88490045]
[1673958373301,15.88516407,1574.5,1574.2,1.61541492]
[1673958373775,3.11662407,1574.4,1574.2,1.61541492]
[1673958374087,15.82066407,1574.3,1574.2,1.61541492]
[1673958374405,15.88666407,1574.3,1574.2,1.61541492]
[1673958376400,16.11666407,1574.3,1574.2,1.61541492]
[1673958376569,17.53175268,1574.3,1574.2,1.61541492]
[1673958376789,20.28499698,1574.3,1574.2,1.61541492]
[1673958378377,18.86990837,1574.3,1574.2,1.61541492]
[1673958380179,22.05305867,1574.3,1574.2,1.61541492]
[1673958380342,29.24365867,1574.3,1574.2,1.61541492]
[1673958380548,13.70486,1574.2,1574.1,0.02054036]
[1673958380819,31.99598591,1574.2,1574.1,0.02054036]
[1673958381178,22.38483561,1574.2,1574.1,0.02054036]
[1673958381648,20.95949223,1574.2,1574.1,0.02054036]
[1673958382693,27.67349223,1574.2,1574.1,0.02054036]
[1673958383648,20.95949223,1574.2,1574.1,0.02054036]
[1673958385648,36.73726561,1574.2,1574.1,0.02054036]
[1673958385861,7.714,1574.1,1574.0,0.01809181]
[1673958386013,37.40391255,1574.1,1574.0,0.01809181]
[1673958386702,39.30106285,1574.1,1573.9,0.02163962]
[1673958386852,24.16004407,1574.0,1573.9,0.02163962]
[1673958387062,30.46334407,1574.0,1573.9,0.02163962]
[1673958387274,34.97596351,1574.0,1573.9,0.02163962]
[1673958387738,34.97596351,1574.0,1573.6,0.04590079]
[1673958387949,25.4178,1573.7,1573.6,0.04590079]
[1673958388169,28.83042407,1573.7,1573.6,0.04590079]
[1673958389383,30.10542407,1573.7,1573.6,0.04590079]
[1673958389592,32.85866837,1573.7,1573.5,0.01998169]
[1673958389803,9.70147407,1573.6,1573.5,0.01998169]
[1673958390063,20.79515041,1573.6,1573.5,0.01998169]
[1673958391107,20.56515041,1573.6,1573.5,0.01998169]
[1673958391945,20.79515041,1573.6,1573.5,0.01998169]
[1673958392116,23.78543688,1573.6,1573.5,0.01998169]
[1673958392319,17.20058688,1573.6,1573.5,0.01998169]
[1673958392580,14.21030041,1573.6,1573.5,0.01998169]
[1673958393221,14.44030041,1573.6,1573.5,0.01998169]
[1673958395581,21.15430041,1573.6,1573.5,0.01998169]
[1673958395732,22.44030041,1573.6,1573.5,0.01998169]
[1673958396286,28.79515041,1573.6,1573.5,0.01998169]
[1673958396592,24.31011245,1573.6,1573.5,0.01998169]
[1673958396954,25.59311245,1573.6,1573.5,0.01998169]
[1673958397406,32.30711245,1573.6,1573.5,0.01998169]
[1673958397620,7.714,1573.5,1573.3,0.05083101]
[1673958397858,12.11562407,1573.4,1573.3,0.05083101]
[1673958398022,23.76705648,1573.4,1573.3,0.05083101]
[1673958398234,23.99705648,1573.4,1573.3,0.05083101]
[1673958399709,30.71105648,1573.4,1573.3,0.05083101]
[1673958401160,33.71105648,1573.4,1573.3,0.05083101]
[1673958401952,34.98805648,1573.4,1573.3,0.05083101]
[1673958402269,58.11129566,1573.4,1573.3,0.05083101]
[1673958402476,7.52313801,1573.3,1572.8,0.05948058]
[1673958402689,2.286,1573.1,1572.8,0.05948058]
[1673958403008,22.41843407,1573.0,1572.8,0.05948058]
[1673958403160,21.24313002,1572.9,1572.8,0.05948058]
[1673958403368,21.30913002,1572.9,1572.8,0.05948058]
[1673958403636,24.32877002,1572.9,1572.8,0.05948058]
[1673958403823,0.066,1572.9,1572.8,1.07548058]
[1673958404040,0.066,1573.1,1572.8,1.07548058]
[1673958404253,0.06,1573.6,1572.9,3.31462407]
[1673958404254,6.41515,1573.6,1572.9,3.31462407]
[1673958404416,0.066,1573.6,1573.0,6.11662407]
[1673958404625,6.35368,1573.9,1573.1,1.61166241]
[1673958404893,0.066,1573.9,1573.3,1.286]
[1673958405052,0.066,1574.0,1573.4,1.286]
[1673958405260,0.066,1574.1,1573.4,1.286]
[1673958405467,9.53001128,1574.3,1573.6,1.277]
[1673958405468,6.35246,1574.2,1573.6,1.277]
[1673958405821,0.635246,1574.1,1573.5,1.283]
[1673958406154,0.635246,1574.1,1573.4,3.066]
[1673958406155,6.988296,1574.1,1573.4,3.066]
[1673958406327,6.988296,1574.1,1573.3,11.0581]
[1673958406328,19.42192,1573.9,1573.3,11.1241]
[1673958406540,20.76792,1573.9,1573.3,11.1241]
[1673958407520,0.23,1573.8,1573.3,11.1241]
[1673958407734,12.70915,1573.7,1573.3,11.1241]
[1673958407945,0.23,1573.6,1573.3,11.1241]
[1673958408094,0.066,1573.7,1573.3,11.1241]
[1673958408306,9.05593128,1574.0,1573.4,1.284]
[1673958408307,0.066,1574.0,1573.4,1.284]
[1673958408645,6.41892,1574.1,1573.4,1.284]
[1673958408833,6.41892,1574.1,1573.5,0.1284]
[1673958409162,6.41892,1574.1,1573.5,1.1284]
[1673958409374,6.89562,1574.1,1573.5,1.1284]
[1673958409590,0.066,1574.1,1573.8,1.278]
[1673958409936,7.05421255,1574.5,1573.7,1.0]
[1673958410147,6.89387,1574.5,1573.8,0.1]
[1673958410364,7.84158128,1574.5,1573.8,0.1]
[1673958410715,3.11662407,1574.4,1573.8,0.1]
[1673958410831,3.11662407,1574.4,1573.9,1.278]
[1673958411992,3.59322407,1574.4,1573.9,1.278]
[1673958412209,1.96691128,1574.5,1574.0,0.1278]
[1673958412417,1.49031128,1574.6,1574.0,1.4118]
[1673958412679,4.54093535,1574.6,1574.0,1.284]
[1673958412823,3.11662407,1574.5,1574.0,1.284]
[1673958413504,0.066,1574.6,1573.9,4.066]
[1673958413718,1.49031128,1574.7,1574.2,1.284]
[1673958413876,9.73760158,1574.8,1574.3,0.1284]
[1673958414085,3.11662407,1574.7,1574.3,0.1284]
[1673958414296,3.11662407,1574.6,1574.1,1.352]
[1673958414565,3.11662407,1574.5,1573.9,3.066]
[1673958414777,3.11662407,1574.5,1573.9,4.278]
[1673958414778,3.11662407,1574.4,1573.9,4.278]
[1673958415242,3.11662407,1574.3,1573.9,4.278]
[1673958415872,3.11662407,1574.3,1573.9,5.78192458]
[1673958416079,3.11662407,1574.2,1573.9,0.066]
[1673958416293,3.11662407,1574.2,1573.8,20.4374]
[1673958416294,3.11662407,1574.1,1573.8,20.4374]
[1673958416715,3.11662407,1574.0,1573.8,20.4374]
[1673958416921,3.11662407,1574.0,1573.8,11.5885]
[1673958417345,3.11662407,1573.9,1573.8,11.5885]
[1673958417555,3.11662407,1573.9,1573.8,0.066]
[1673958417794,3.11662407,1573.9,1573.6,0.066]
[1673958418020,3.11662407,1573.8,1573.4,10.8961]
[1673958418207,3.59342407,1573.8,1573.4,10.8961]
[1673958418415,3.11662407,1573.7,1573.4,10.8961]
[1673958418840,0.052,1573.8,1573.7,1.68166067]
[1673958419080,0.066,1574.5,1574.1,3.30994918]
[1673958419303,0.066,1575.0,1574.6,1.01169999]
[1673958419446,0.16608455,1575.1,1574.6,1.01169999]
[1673958419659,0.16608455,1575.1,1574.7,1.10117]
[1673958420121,0.16608455,1575.1,1575.0,2.569]
[1673958420705,0.16608455,1575.1,1574.9,0.066]
[1673958420914,0.16608455,1575.1,1574.7,12.67897]
[1673958421444,1.0,1574.9,1574.7,0.066]
[1673958421699,8.0,1574.8,1574.6,1.01169999]
[1673958421897,0.066,1574.8,1574.6,1.01169999]
[1673958422229,8.4764,1575.0,1574.6,1.01169999]
[1673958422230,0.066,1575.0,1574.6,1.01169999]
[1673958422444,0.16608455,1575.1,1574.9,1.286]
[1673958422658,0.16608455,1575.1,1575.0,13.6984]
[1673958422870,0.16608455,1575.1,1575.0,22.1234]
[1673958424309,0.16608455,1575.1,1575.0,25.1234]
[1673958425241,0.16608455,1575.1,1575.0,24.1234]
[1673958425591,0.16608455,1575.1,1575.0,23.447117]
[1673958426086,0.066,1575.8,1575.2,1.0]
[1673958426279,0.066,1576.0,1575.3,32.00744407]
[1673958426488,0.19965694,1576.1,1575.9,2.562]
[1673958426818,0.19965694,1576.1,1576.0,1.286]
[1673958427750,0.19965694,1576.1,1575.9,1.342]
[1673958427962,0.19965694,1576.1,1575.9,1.276]
[1673958428483,0.19965694,1576.1,1575.9,7.62156]
[1673958428852,3.31628101,1576.1,1575.9,0.066]
[1673958429059,0.3316281,1576.0,1575.7,15.44359]
[1673958429214,0.3316281,1576.0,1575.7,6.41219]
[1673958429425,0.19965694,1576.1,1575.8,3.11662407]
[1673958429803,0.19965694,1576.1,1576.0,19.03551]
[1673958430012,0.19965694,1576.1,1576.0,23.49313407]
[1673958430490,0.19965694,1576.1,1576.0,20.37651]
[1673958431372,0.19965694,1576.1,1576.0,0.066]
[1673958431583,0.19965694,1576.1,1575.9,0.066]
[1673958431584,3.31628101,1576.1,1575.9,0.066]
[1673958431791,0.3316281,1576.0,1575.7,14.04415]
[1673958432618,0.19965694,1576.1,1575.8,1.279]
[1673958432841,0.19965694,1576.1,1575.9,6.34558]
[1673958432999,0.19965694,1576.1,1575.9,6.41158]
[1673958433501,0.19965694,1576.1,1575.9,12.75716]
[1673958433848,0.14965694,1576.1,1575.9,12.75716]
[1673958434058,0.14965694,1576.1,1575.9,0.066]
[1673958434059,3.26628101,1576.1,1575.9,0.066]
[1673958434389,3.26628101,1576.1,1575.8,6.3458]
[1673958434390,1.3266281,1576.0,1575.8,0.066]
[1673958434599,4.44325217,1576.0,1575.7,6.41209]
[1673958434837,4.91935217,1576.0,1575.7,6.41209]
[1673958435223,3.11662407,1575.9,1575.7,0.066]
[1673958435434,3.59282407,1575.8,1575.4,17.56242]
[1673958435642,3.47590648,1575.8,1575.4,6.41332]
[1673958436541,0.5422,1575.9,1575.4,20.3925]
[1673958436691,0.4762,1575.9,1575.4,20.3925]
[1673958437693,3.59282407,1575.9,1575.4,20.3925]
[1673958437845,3.54282407,1575.9,1575.4,19.1085]
[1673958438058,0.35428241,1575.8,1575.4,19.1085]
[1673958438843,0.35628241,1575.8,1575.4,19.1065]
[1673958439059,0.35428241,1575.8,1575.4,19.1085]
[1673958439590,3.47090648,1575.8,1575.4,19.1085]
[1673958441838,0.066,1575.9,1575.4,20.3945]
[1673958442061,3.11662407,1575.9,1575.4,20.3945]
[1673958442632,8.8687281,1576.0,1575.4,9.587126]
[1673958442633,3.11662407,1575.8,1575.4,9.587126]
[1673958442802,3.11662407,1575.7,1575.4,9.587126]
[1673958443226,1.0,1575.5,1575.4,3.239806]
[1673958443447,3.52828648,1575.5,1575.4,3.173806]
[1673958445280,22.20596648,1575.5,1575.4,3.173806]
[1673958445583,1.0,1575.4,1575.2,0.066]
[1673958445761,18.17091407,1575.3,1574.8,6.41571]
[1673958445971,3.11662407,1575.2,1574.8,0.066]
[1673958446179,3.11662407,1575.2,1574.7,6.4161]
[1673958446180,3.42828648,1575.1,1574.7,6.4161]
[1673958446393,1.74760469,1575.1,1574.7,6.4161]
[1673958446607,1.74760469,1575.1,1574.7,12.76651]
[1673958447988,1.43594228,1575.1,1574.7,12.76651]
[1673958448704,1.43594228,1575.1,1574.7,6.4161]
[1673958450107,4.39162407,1575.0,1574.7,0.066]
[1673958450320,4.59312407,1574.9,1574.6,0.04246947]
[1673958450490,6.11662407,1574.8,1574.6,0.04246947]
[1673958450681,6.18262407,1574.8,1574.6,0.04246947]
[1673958451230,3.11662407,1574.7,1574.6,0.04246947]
[1673958451939,3.59312407,1574.7,1574.6,0.04246947]
[1673958452313,4.35903648,1574.7,1574.6,0.04246947]
[1673958452484,4.88253648,1574.7,1574.6,0.04246947]
[1673958452905,5.11253648,1574.7,1574.6,0.04246947]
[1673958453140,4.17853648,1574.7,1574.6,0.04246947]
[1673958453360,3.88253648,1574.7,1574.6,0.04246947]
[1673958454059,4.11253648,1574.7,1574.6,0.04246947]
[1673958455037,10.46294648,1574.7,1574.6,0.04246947]
[1673958455268,18.52894648,1574.7,1574.6,0.04246947]
[1673958455480,22.00544648,1574.7,1574.6,0.04246947]
[1673958456067,28.35585648,1574.7,1574.6,0.04246947]
[1673958456540,35.06985648,1574.7,1574.6,0.04246947]
[1673958457367,22.00544648,1574.7,1574.6,0.04246947]
[1673958457585,6.65912407,1574.7,1574.6,0.04246947]
[1673958457918,14.18262407,1574.7,1574.6,0.04246947]
[1673958458604,6.18262407,1574.7,1574.6,0.04246947]
[1673958459048,3.18262407,1574.7,1574.6,0.04246947]
[1673958459363,3.11662407,1574.7,1574.6,0.04246947]
[1673958459714,4.11756248,1574.7,1574.6,0.04246947]
[1673958460123,16.04744407,1574.7,1574.6,0.04246947]
[1673958460427,9.76303407,1574.7,1574.6,0.04246947]
[1673958460599,16.11344407,1574.7,1574.6,0.04246947]
[1673958461051,9.76303407,1574.7,1574.6,0.04246947]
[1673958461419,30.82744407,1574.7,1574.6,0.04246947]
[1673958461692,37.69287348,1574.7,1574.6,0.04246947]
[1673958461901,31.45537348,1574.7,1574.6,0.04246947]
[1673958462213,37.80578348,1574.7,1574.6,0.04246947]
[1673958463632,44.51978348,1574.7,1574.6,0.04246947]
[1673958465691,44.04328348,1574.7,1574.6,0.04246947]
[1673958466218,30.97887348,1574.7,1574.6,0.04246947]
[1673958467424,37.32928348,1574.7,1574.6,0.04246947]
[1673958467641,44.04328348,1574.7,1574.6,0.04246947]
[1673958467856,44.04328348,1574.7,1574.6,0.03940067]
[1673958470061,16.62846348,1574.7,1574.6,0.03940067]
[1673958470258,12.53303407,1574.7,1574.6,0.03940067]
[1673958470466,6.18262407,1574.7,1574.6,0.03940067]
[1673958470726,3.066,1574.7,1574.6,0.03940067]
[1673958470897,3.066,1574.8,1574.6,0.03940067]
[1673958471113,3.11662407,1574.7,1574.6,0.03940067]
[1673958471358,6.11662407,1574.7,1574.6,0.03940067]
[1673958471565,6.18262407,1574.7,1574.6,0.03940067]
[1673958471782,3.18262407,1574.7,1574.6,0.03940067]
[1673958472002,3.11662407,1574.7,1574.6,0.03940067]
[1673958472519,9.46703407,1574.7,1574.6,0.03940067]